bitfinex/quotes_SOLUSD_20241125
["timestamp","ask_amount","ask_price","bid_price","bid_amount"]
[1732570858602,50.5382692,236.84,236.75,20.5382692]
[1732570858803,30.0,236.84,236.79,20.5382692]
[1732570859419,30.0,236.84,236.81,20.5382692]
[1732570860129,30.0,236.84,236.83,20.5382692]
[1732570861132,1.2664,236.9,236.83,20.5382692]
[1732570861299,20.5382692,236.88,236.81,20.5382692]
[1732570861511,20.5382692,236.86,236.77,20.5382692]
[1732570862017,30.0,236.83,236.77,20.5382692]
[1732570862604,20.5382692,236.8,236.69,4.2248]
[1732570862810,20.5382692,236.8,236.74,20.5382692]
[1732570863408,21.8051692,236.8,236.74,20.5382692]
[1732570863607,30.0,236.79,236.74,20.5382692]
[1732570864021,30.0,236.79,236.77,20.5382692]
[1732570864620,30.0,236.79,236.75,20.5382692]
[1732570866411,31.2669,236.79,236.75,20.5382692]
[1732570866618,20.5382692,236.77,236.69,20.5382692]
[1732570866940,20.5382692,236.75,236.68,0.5003757]
[1732570867238,20.5382692,236.73,236.68,0.5003757]
[1732570867825,20.5382692,236.71,236.68,0.5003757]
[1732570868128,38.6347692,236.69,236.68,0.5003757]
[1732570868640,23.776884,236.68,236.66,0.2503]
[1732570868847,20.5382692,236.67,236.66,0.2503]
[1732570869144,30.0,236.67,236.66,0.2503]
[1732570869539,53.776884,236.67,236.66,0.2503]
[1732570869713,30.0,236.67,236.66,0.2503]
[1732570870652,31.2675,236.67,236.66,0.2503]
[1732570871529,30.0,236.67,236.66,0.2503]
[1732570872522,50.5382692,236.67,236.66,0.2503]
[1732570872845,50.5382692,236.67,236.57,15.0]
[1732570873045,50.5382692,236.65,236.57,35.5382692]
[1732570874145,20.5382692,236.58,236.44,0.5003757]
[1732570874443,20.5382692,236.56,236.47,20.5382692]
[1732570874646,21.8063692,236.56,236.47,20.5382692]
[1732570875130,21.8062692,236.58,236.49,20.5382692]
[1732570875329,30.0,236.53,236.49,20.5382692]
[1732570875954,30.0,236.53,236.45,4.2292]
[1732570875955,30.0,236.53,236.51,20.5382692]
[1732570876826,21.8060692,236.62,236.52,4.2279]
[1732570877128,20.5382692,236.6,236.51,20.5382692]
[1732570877632,20.5382692,236.6,236.51,24.7662692]
[1732570878450,20.5382692,236.66,236.57,20.5382692]
[1732570878823,21.8058692,236.66,236.59,20.5382692]
[1732570879022,9.27843619,236.69,236.62,20.5382692]
[1732570879328,20.5382692,236.72,236.64,20.5382692]
[1732570879525,1.2671,236.76,236.63,20.0]
[1732570879837,20.5382692,236.67,236.63,20.0]
[1732570880036,20.5382692,236.65,236.58,19.2897]
[1732570880222,20.5382692,236.65,236.6,20.0]
[1732570880748,20.5382692,236.69,236.62,4.2261]
[1732570881055,20.5382692,236.67,236.6,4.2264]
[1732570881240,20.5382692,236.67,236.55,7.4431]
[1732570881241,20.5382692,236.61,236.45,31.1455]
[1732570881427,20.5382692,236.59,236.5,20.5382692]
[1732570882325,20.5382692,236.63,236.54,20.5382692]
[1732570882853,20.5382692,236.59,236.52,24.7660692]
[1732570883034,20.5382692,236.61,236.52,24.7660692]
[1732570883241,20.5382692,236.61,236.54,20.5382692]
[1732570884125,20.5382692,236.63,236.54,20.5382692]
[1732570884327,20.5382692,236.59,236.52,20.5382692]
[1732570884547,20.5382692,236.57,236.48,20.5382692]
[1732570884727,21.8059692,236.64,236.46,10.5724]
[1732570884728,20.5382692,236.53,236.46,20.5382692]
[1732570884927,20.5382692,236.55,236.48,20.5382692]
[1732570886034,20.5382692,236.57,236.5,20.5382692]
[1732570886346,20.5382692,236.57,236.48,40.5382692]
[1732570886651,20.5382692,236.55,236.48,40.5382692]
[1732570886856,20.5382692,236.55,236.49,4.2285]
[1732570887059,20.5382692,236.57,236.49,4.2285]
[1732570887639,20.5382692,236.55,236.48,20.5382692]
[1732570887848,20.5382692,236.53,236.46,24.7672692]
[1732570888159,30.0,236.52,236.46,24.7672692]
[1732570889360,30.0,236.52,236.5,20.5382692]
[1732570890330,30.0,236.52,236.48,20.5382692]
[1732570890754,24.76155542,236.41,236.4,0.0212]
[1732570890952,25.29982462,236.41,236.4,0.0212]
[1732570891152,4.76155542,236.36,236.24,20.5382692]
[1732570891351,25.29982462,236.36,236.24,20.5382692]
[1732570891653,20.5382692,236.36,236.26,20.5382692]
[1732570891950,20.5382692,236.36,236.3,4.2318]
[1732570892150,20.5382692,236.36,236.19,20.56831179]
[1732570892351,25.29982462,236.36,236.24,20.5382692]
[1732570892550,25.29982462,236.36,236.26,20.5382692]
[1732570893257,25.29982462,236.36,236.23,4.2329]
[1732570893441,55.29982462,236.36,236.24,20.5382692]
[1732570893636,55.29982462,236.36,236.25,24.7709692]
[1732570894258,4.76155542,236.3,236.21,14.2334]
[1732570894451,4.76155542,236.32,236.24,20.5382692]
[1732570894633,4.76155542,236.32,236.24,20.0382692]
[1732570895034,20.5382692,236.33,236.26,20.5382692]
[1732570895334,4.76155542,236.32,236.25,20.5382692]
[1732570895740,4.76155542,236.34,236.27,20.5382692]
[1732570896358,42.79982462,236.35,236.27,20.5382692]
[1732570896569,42.79982462,236.35,236.27,10.5382692]
[1732570896781,22.26155542,236.35,236.28,4.2322]
[1732570896945,22.26155542,236.35,236.29,20.5382692]
[1732570897271,42.79982462,236.35,236.26,24.2325]
[1732570897577,20.5382692,236.37,236.29,20.5382692]
[1732570897750,20.5382692,236.39,236.31,20.5382692]
[1732570898642,20.5382692,236.39,236.32,4.2315]
[1732570898847,20.5382692,236.39,236.31,20.5382692]
[1732570899949,20.5382692,236.39,236.32,4.2315]
[1732570901773,20.5382692,236.39,236.31,20.5382692]
[1732570902072,20.5382692,236.39,236.33,20.5382692]
[1732570903349,20.5382692,236.39,236.29,4.232]
[1732570903350,20.5382692,236.34,236.23,4.2331]
[1732570903549,20.5382692,236.32,236.24,25.19446754]
[1732570903759,20.5382692,236.32,236.24,20.96156754]
[1732570904064,30.0,236.31,236.24,18.46156754]
[1732570904369,30.0,236.31,236.24,22.69446754]
[1732570904756,30.0,236.31,236.26,20.5382692]
[1732570905577,30.0,236.31,236.24,24.7711692]
[1732570906457,30.0,236.31,236.27,20.5382692]
[1732570906663,30.0,236.31,236.28,20.5382692]
[1732570906979,20.5382692,236.38,236.3,20.5382692]
[1732570907174,21.8073692,236.39,236.31,20.5382692]
[1732570907376,30.0,236.32,236.31,20.5382692]
[1732570907676,10.25525294,236.44,236.31,20.5382692]
[1732570907677,20.5382692,236.4,236.31,20.5382692]
[1732570907872,20.5382692,236.4,236.33,20.5382692]
[1732570908076,20.5382692,236.39,236.32,20.5382692]
[1732570908382,20.5382692,236.39,236.31,20.5382692]
[1732570908678,20.5382692,236.39,236.31,19.7698692]
[1732570909258,20.5382692,236.39,236.32,20.5382692]
[1732570909458,20.5382692,236.4,236.32,20.5382692]
[1732570910360,20.5382692,236.4,236.32,24.7696692]
[1732570910583,20.5382692,236.41,236.34,20.5382692]
[1732570910799,30.79352214,236.44,236.36,20.5382692]
[1732570911076,10.25525294,236.44,236.32,14.8102]
[1732570911278,10.25525294,236.44,236.31,10.0]
[1732570911279,10.25525294,236.44,236.37,20.5382692]
[1732570911454,10.25525294,236.44,236.39,20.5382692]
[1732570911657,10.25525294,236.44,236.38,20.5382692]
[1732570911855,10.25525294,236.44,236.42,20.5382692]
[1732570912078,10.25525294,236.44,236.33,10.0]
[1732570912079,10.25525294,236.44,236.43,20.5382692]
[1732570912277,40.25525294,236.44,236.42,20.5382692]
[1732570912670,40.25525294,236.44,236.43,20.5382692]
[1732570912865,40.25525294,236.44,236.42,24.7678692]
[1732570913581,10.25525294,236.44,236.43,20.5382692]
[1732570913788,20.5382692,236.53,236.43,20.0]
[1732570913989,20.5382692,236.54,236.47,20.5382692]
[1732570914369,20.5382692,236.57,236.5,20.5382692]
[1732570914669,20.5382692,236.59,236.52,20.5382692]
[1732570914883,20.5382692,236.56,236.49,20.5382692]
[1732570915067,30.0,236.51,236.48,20.5382692]
[1732570915668,30.0,236.51,236.49,4.2285]
[1732570916101,30.0,236.51,236.46,4.229]
[1732570916296,30.0,236.51,236.46,24.7672692]
[1732570917312,30.0,236.51,236.47,20.5382692]
[1732570917714,30.0,236.51,236.45,40.5382692]
[1732570918200,30.0,236.51,236.45,20.5382692]
[1732570918507,30.0,236.51,236.43,24.7677692]
[1732570918508,20.5382692,236.5,236.43,24.7677692]
[1732570918718,30.0,236.49,236.43,24.7677692]
[1732570921030,30.0,236.49,236.45,20.5382692]
[1732570921190,20.5382692,236.47,236.4,20.5382692]
[1732570921393,20.5382692,236.46,236.38,20.5382692]
[1732570921885,30.0,236.44,236.39,20.5382692]
[1732570922087,30.0,236.44,236.4,20.5382692]
[1732570922992,30.0,236.44,236.43,20.5382692]
[1732570923197,28.4914692,236.51,236.43,20.5382692]
[1732570923398,20.5382692,236.44,236.29,7.6868]
[1732570923605,30.0,236.43,236.36,20.5382692]
[1732570923915,30.0,236.43,236.38,20.5382692]
[1732570924602,30.0,236.43,236.39,4.2302]
[1732570925622,20.5382692,236.4,236.33,4.2313]
[1732570925824,20.5382692,236.42,236.34,20.5382692]
[1732570926000,30.0,236.39,236.34,20.5382692]
[1732570926515,30.0,236.39,236.35,4.231]
[1732570926773,31.269,236.39,236.23,7.7465]
[1732570926925,20.5382692,236.38,236.29,20.5382692]
[1732570927110,30.0,236.37,236.31,20.5382692]
[1732570927429,30.0,236.37,236.33,20.5382692]
[1732570928016,30.0,236.37,236.35,20.5382692]
[1732570928515,30.0,236.37,236.34,12.89456138]
[1732570928718,30.0,236.37,236.35,4.231]
[1732570928931,12.89456138,236.42,236.35,4.231]
[1732570929402,12.89456138,236.42,236.34,12.89456138]
[1732570929606,12.89456138,236.42,236.34,4.231]
[1732570929811,30.0,236.36,236.3,12.89456138]
[1732570930109,30.0,236.36,236.32,12.89456138]
[1732570930353,30.0,236.36,236.29,12.89456138]
[1732570930718,30.0,236.36,236.3,4.2319]
[1732570931226,30.0,236.36,236.29,12.89456138]
[1732570931403,42.89456138,236.36,236.29,12.89456138]
[1732570931817,30.0,236.36,236.31,12.89456138]
[1732570932112,12.89456138,236.42,236.35,12.89456138]
[1732570932411,20.52006138,236.44,236.37,12.89456138]
[1732570932616,30.0,236.38,236.37,12.89456138]
[1732570933596,20.52006138,236.44,236.37,12.89456138]
[1732570934210,12.89456138,236.48,236.4,12.89456138]
[1732570935016,12.89456138,236.51,236.44,12.89456138]
[1732570935324,30.0,236.45,236.44,12.89456138]
[1732570935695,7.755,236.52,236.44,12.89456138]
[1732570935919,12.89456138,236.55,236.48,17.12316138]
[1732570936108,12.89456138,236.53,236.46,12.89456138]
[1732570936299,12.89456138,236.54,236.46,12.89456138]
[1732570936799,21.1094,236.56,236.46,12.89456138]
[1732570936800,12.89456138,236.53,236.46,12.89456138]
[1732570937113,12.89456138,236.54,236.46,12.89456138]
[1732570937289,12.89456138,236.53,236.46,12.89456138]
[1732570937491,12.89456138,236.54,236.46,12.89456138]
[1732570937894,12.89456138,236.55,236.47,12.89456138]
[1732570938103,12.89456138,236.55,236.47,17.12336138]
[1732570939892,12.89456138,236.55,236.48,12.89456138]
[1732570940093,19.8412,236.56,236.49,12.89456138]
[1732570940594,14.16266138,236.57,236.49,17.12296138]
[1732570941816,12.89456138,236.56,236.48,12.89456138]
[1732570942195,12.89456138,236.5,236.43,4.2295]
[1732570942396,12.89456138,236.49,236.41,12.89456138]
[1732570943211,30.0,236.48,236.41,12.89456138]
[1732570943597,30.0,236.48,236.42,4.2297]
[1732570944322,30.0,236.48,236.43,12.89456138]
[1732570945399,30.0,236.48,236.43,17.12406138]
[1732570946512,30.0,236.48,236.43,12.89456138]
[1732570946714,12.89456138,236.47,236.39,12.89456138]
[1732570946920,12.89456138,236.45,236.37,12.89456138]
[1732570947224,12.89456138,236.4,236.32,17.12606138]
[1732570947415,14.16356138,236.4,236.32,17.12606138]
[1732570947735,1.269,236.4,236.34,12.89456138]
[1732570947900,30.0,236.39,236.34,12.89456138]
[1732570949221,30.0,236.39,236.32,17.12606138]
[1732570949818,30.0,236.39,236.33,12.89456138]
[1732570950129,30.0,236.39,236.37,12.89456138]
[1732570950425,30.0,236.39,236.38,12.89456138]
[1732570950922,14.16326138,236.45,236.38,12.89456138]
[1732570951130,14.16326138,236.45,236.37,12.89456138]
[1732570951520,14.16326138,236.45,236.37,17.12506138]
[1732570952123,12.89456138,236.43,236.36,12.89456138]
[1732570952730,12.89456138,236.44,236.36,12.89456138]
[1732570954327,14.16336138,236.44,236.36,12.89456138]
[1732570954709,1.2688,236.44,236.37,12.89456138]
[1732570955022,1.2687,236.47,236.41,12.89456138]
[1732570955230,1.2687,236.47,236.42,12.89456138]
[1732570955529,20.7393,236.5,236.44,12.89456138]
[1732570956708,33.63386138,236.5,236.42,12.89456138]
[1732570956914,12.89456138,236.48,236.41,12.89456138]
[1732570957219,12.89456138,236.47,236.39,12.89456138]
[1732570957404,12.89456138,236.48,236.41,12.89456138]
[1732570957835,14.16306138,236.49,236.42,12.89456138]
[1732570958127,19.4708,236.5,236.44,12.89456138]
[1732570958516,9.4294,236.51,236.46,12.89456138]
[1732570958517,8.161,236.51,236.46,12.89456138]
[1732570958735,12.89456138,236.53,236.45,12.89456138]
[1732570959611,12.89456138,236.51,236.43,12.89456138]
[1732570959811,1.2684,236.5,236.43,12.89456138]
[1732570960013,14.16296138,236.5,236.42,12.89456138]
[1732570960212,14.16296138,236.5,236.37,4.2306]
[1732570960213,12.89456138,236.48,236.41,12.89456138]
[1732570960827,1.2684,236.5,236.37,4.2306]
[1732570960828,12.89456138,236.45,236.38,12.89456138]
[1732570961030,4.4396,236.5,236.38,12.89456138]
[1732570961031,12.89456138,236.46,236.38,12.89456138]
[1732570961926,1.2687,236.45,236.38,12.89456138]
[1732570962809,1.2687,236.45,236.38,17.12496138]
[1732570963014,1.2687,236.47,236.41,12.89456138]
[1732570963935,12.89456138,236.46,236.39,12.89456138]
[1732570964325,12.89456138,236.44,236.37,12.89456138]
[1732570964731,12.89456138,236.46,236.39,12.89456138]
[1732570964926,3.1712,236.5,236.43,12.89456138]
[1732570964927,1.2684,236.5,236.43,12.89456138]
[1732570965135,1.2684,236.52,236.45,12.89456138]
[1732570965736,1.2682,236.55,236.5,12.89456138]
[1732570966539,8.161,236.58,236.53,12.89456138]
[1732570966836,1.2679,236.6,236.54,12.89456138]
[1732570967054,19.0571,236.61,236.56,12.89456138]
[1732570967341,11.52573294,236.62,236.57,12.89456138]
[1732570967918,11.52573294,236.62,236.58,12.89456138]
[1732570968248,11.52573294,236.62,236.55,12.89456138]
[1732570968543,11.52573294,236.62,236.56,12.89456138]
[1732570968915,11.52573294,236.62,236.55,12.89456138]
[1732570969116,12.89456138,236.6,236.52,12.89456138]
[1732570969318,24.42029432,236.62,236.55,12.89456138]
[1732570969833,1.2679,236.61,236.5,4.2281]
[1732570970366,10.25793294,236.62,236.48,28.130974]
[1732570970641,11.52583294,236.62,236.48,38.702674]
[1732570971028,12.89456138,236.61,236.53,12.89456138]
[1732570971740,14.16246138,236.61,236.53,12.89456138]
[1732570972251,1.2679,236.61,236.55,12.89456138]
[1732570972738,10.25793294,236.62,236.55,12.89456138]
[1732570973346,10.25793294,236.62,236.53,4.2277]
[1732570973347,11.52583294,236.62,236.57,12.89456138]
[1732570973548,11.52583294,236.62,236.55,12.89456138]
[1732570973748,10.25793294,236.62,236.55,17.12196138]
[1732570973938,10.25793294,236.62,236.61,12.89456138]
[1732570974350,10.25793294,236.62,236.61,13.02005138]
[1732570975849,1.2673,236.72,236.62,0.12549]
[1732570976052,19.9466,236.73,236.68,12.89456138]
[1732570976238,1.2671,236.75,236.69,12.89456138]
[1732570976435,14.16166138,236.75,236.67,12.89456138]
[1732570976740,12.89456138,236.73,236.65,12.89456138]
[1732570977165,14.16166138,236.75,236.68,12.89456138]
[1732570978139,12.89456138,236.73,236.66,12.89456138]
[1732570978534,14.16166138,236.75,236.67,12.89456138]
[1732570979759,14.16166138,236.75,236.63,4.2258]
[1732570979760,8.5971,236.77,236.72,12.89456138]
[1732570979932,8.5971,236.77,236.71,12.89456138]
[1732570980130,8.5971,236.77,236.67,20.0]
[1732570980131,8.5971,236.77,236.7,12.89456138]
[1732570980432,12.89456138,236.74,236.62,4.2261]
[1732570980630,12.89456138,236.72,236.65,12.89456138]
[1732570980853,12.89456138,236.73,236.65,12.89456138]
[1732570981061,12.89456138,236.7,236.62,12.89456138]
[1732570981234,12.89456138,236.71,236.64,12.89456138]
[1732570981564,12.89456138,236.69,236.63,12.89456138]
[1732570981737,10.4976,236.77,236.6,1.95102161]
[1732570981938,10.4976,236.77,236.57,4.227]
[1732570981939,1.2671,236.76,236.61,0.12549]
[1732570982551,1.2671,236.76,236.58,24.027864]
[1732570982750,1.2671,236.76,236.64,24.027864]
[1732570982953,12.89456138,236.72,236.65,12.89456138]
[1732570983135,12.89456138,236.71,236.64,12.89456138]
[1732570983963,12.89456138,236.69,236.6,12.89456138]
[1732570984256,12.89456138,236.67,236.58,12.89456138]
[1732570984461,74.4353,236.73,236.55,31.625462]
[1732570984462,12.89456138,236.63,236.56,12.89456138]
[1732570984645,12.89456138,236.63,236.55,12.894562]
[1732570984958,12.89456138,236.63,236.54,12.89456138]
[1732570985262,1.2678,236.62,236.54,12.89456138]
[1732570985757,1.2678,236.62,236.54,17.12206138]
[1732570987257,12.89456138,236.61,236.54,12.89456138]
[1732570987564,12.89456138,236.61,236.52,17.12236138]
[1732570987941,12.89456138,236.61,236.54,12.89456138]
[1732570988740,1.2679,236.61,236.54,12.89456138]
[1732570989557,12.89456138,236.63,236.54,12.89456138]
[1732570989757,1.2678,236.62,236.54,12.89456138]
[1732570990063,18.1441,236.61,236.54,12.89456138]
[1732570990241,12.89456138,236.59,236.5,12.89456138]
[1732570990773,12.89456138,236.57,236.48,12.89456138]
[1732570991140,18.1441,236.61,236.54,12.89456138]
[1732570991539,18.1441,236.61,236.46,0.12549]
[1732570991540,18.1441,236.61,236.58,12.89456138]
[1732570992176,19.412,236.61,236.54,12.89456138]
[1732570992357,19.412,236.61,236.48,10.5714]
[1732570992358,12.89456138,236.6,236.52,12.89456138]
[1732570992871,12.89456138,236.56,236.45,6.22929434]
[1732570993168,12.89456138,236.56,236.47,12.89456138]
[1732570993353,12.89456138,236.56,236.49,12.89456138]
[1732570993752,12.89456138,236.54,236.47,12.89456138]
[1732570994168,7.9697,236.55,236.47,12.89456138]
[1732570994372,12.89456138,236.53,236.41,4.2299]
[1732570994549,20.86426138,236.55,236.47,12.89456138]
[1732570994748,12.89456138,236.53,236.45,12.89456138]
[1732570994950,12.89456138,236.53,236.43,12.89456138]
[1732570995270,7.9697,236.55,236.43,12.89456138]
[1732570995271,12.89456138,236.51,236.43,12.89456138]
[1732570995663,1.2684,236.5,236.43,12.89456138]
[1732570996373,20.8461,236.5,236.41,12.89456138]
[1732570999771,20.8461,236.5,236.43,12.89456138]
[1732571000074,20.8461,236.5,236.45,12.89456138]
[1732571001175,20.8461,236.5,236.43,12.89456138]
[1732571001551,20.8461,236.5,236.44,12.89456138]
[1732571002962,20.8461,236.5,236.45,12.89456138]
[1732571003476,20.8461,236.5,236.44,12.89456138]
[1732571003654,20.8461,236.5,236.4,4.23]
[1732571003655,20.8461,236.5,236.45,12.89456138]
[1732571004569,20.8461,236.5,236.4,4.23]
[1732571004570,19.5777,236.5,236.41,0.12549]
[1732571004781,7.9697,236.55,236.49,12.89456138]
[1732571004782,28.975,236.55,236.49,12.89456138]
[1732571004952,28.975,236.55,236.41,24.027864]
[1732571005252,12.89456138,236.51,236.41,23.776884]
[1732571005452,32.1455,236.55,236.39,6.2374103]
[1732571005756,28.975,236.55,236.5,12.89456138]
[1732571005965,28.975,236.55,236.52,12.89456138]
[1732571006164,27.7068,236.55,236.52,12.89456138]
[1732571006382,18.415,236.6,236.54,12.89456138]
[1732571006580,19.6829,236.6,236.56,12.89456138]
[1732571006875,18.415,236.6,236.58,12.89456138]
[1732571007072,10.21547087,236.61,236.59,12.89456138]
[1732571007573,10.21547087,236.61,236.6,12.89456138]
[1732571008665,9.27948388,236.64,236.61,0.12549]
[1732571008971,1.2672,236.74,236.63,25.78912276]
[1732571009180,7.8002,236.75,236.7,12.89456138]
[1732571009379,20.69476138,236.75,236.68,12.89456138]
[1732571009681,7.8002,236.75,236.69,12.89456138]
[1732571010573,9.0674,236.75,236.69,12.89456138]
[1732571011159,21.96196138,236.75,236.68,12.89456138]
[1732571011574,21.96196138,236.75,236.67,12.89456138]
[1732571011970,12.89456138,236.69,236.55,19.1767]
[1732571012161,9.0674,236.75,236.58,12.89456138]
[1732571012162,12.89456138,236.66,236.58,12.89456138]
[1732571012564,1.2676,236.65,236.6,12.89456138]
[1732571012990,1.2676,236.65,236.59,12.89456138]
[1732571013772,12.89456138,236.69,236.62,12.89456138]
[1732571014093,12.89456138,236.71,236.64,12.89456138]
[1732571014280,12.89456138,236.69,236.61,12.89456138]
[1732571014691,12.89456138,236.63,236.55,4.2273]
[1732571014992,12.89456138,236.57,236.47,1.9858196]
[1732571015289,12.89456138,236.57,236.46,4.2289]
[1732571015290,30.0,236.55,236.5,12.89456138]
[1732571015486,30.0,236.55,236.52,12.89456138]
[1732571015692,30.0,236.55,236.54,12.89456138]
[1732571016369,30.0,236.55,236.5,12.89456138]
[1732571016571,30.0,236.55,236.48,4.2286]
[1732571016774,31.2682,236.55,236.47,0.12549]
[1732571016974,44.16276138,236.55,236.47,12.89456138]
[1732571018983,12.89456138,236.51,236.42,6.19014267]
[1732571019276,30.0,236.48,236.43,12.89456138]
[1732571019482,30.0,236.48,236.42,4.2297]
[1732571019683,30.0,236.48,236.44,12.89456138]
[1732571020078,30.0,236.48,236.47,0.12549]
[1732571020286,30.0,236.48,236.47,36.79693538]
[1732571020287,16.0207766,236.48,236.47,36.79693538]
[1732571020483,5.57922341,236.48,236.47,36.92242538]
[1732571020690,5.57922341,236.48,236.47,33.14554138]
[1732571020889,5.57922341,236.48,236.47,56.92242538]
[1732571021096,30.0,236.5,236.47,56.92242538]
[1732571021295,30.0,236.5,236.49,0.12549]
[1732571021687,30.0,236.5,236.49,13.02005138]
[1732571021875,30.0,236.5,236.49,17.24855138]
[1732571022379,30.0,236.5,236.49,12.89456138]
[1732571024289,30.0,236.5,236.4,23.46956138]
[1732571024290,68.87126138,236.5,236.26,10.0]
[1732571024494,68.87126138,236.5,236.38,12.89456138]
[1732571024495,12.89456138,236.47,236.38,12.89456138]
[1732571024678,30.0,236.44,236.4,12.89456138]
[1732571025173,30.0,236.44,236.42,12.89456138]
[1732571025381,30.0,236.44,236.28,10.5804]
[1732571025993,12.89456138,236.41,236.26,6.23379764]
[1732571026183,30.0,236.4,236.36,12.89456138]
[1732571026505,12.89456138,236.45,236.38,12.89456138]
[1732571026795,4.4399,236.49,236.38,12.89456138]
[1732571026796,12.89456138,236.47,236.38,12.89456138]
[1732571027107,4.4399,236.49,236.28,12.89456138]
[1732571027108,12.89456138,236.43,236.35,12.89456138]
[1732571027579,12.89456138,236.45,236.37,12.89456138]
[1732571027774,14.16336138,236.45,236.37,12.89456138]
[1732571028417,21.89732787,236.45,236.38,20.62852787]
[1732571028588,1.2688,236.45,236.38,20.62852787]
[1732571029278,1.2688,236.45,236.33,4.2313]
[1732571029279,20.62852787,236.49,236.42,20.62852787]
[1732571029582,25.9767,236.5,236.44,20.62852787]
[1732571030197,25.9767,236.5,236.41,4.2298]
[1732571030409,25.9767,236.5,236.44,20.62852787]
[1732571031902,20.62852787,236.47,236.36,20.0]
[1732571032081,27.2452,236.5,236.34,20.62852787]
[1732571032082,20.62852787,236.42,236.34,20.62852787]
[1732571032286,20.62852787,236.42,236.36,20.62852787]
[1732571032484,40.4164,236.5,236.36,20.62852787]
[1732571032485,20.62852787,236.44,236.36,20.62852787]
[1732571032792,20.62852787,236.42,236.36,20.62852787]
[1732571033105,20.62852787,236.43,236.36,20.62852787]
[1732571033278,20.62852787,236.42,236.35,20.62852787]
[1732571033486,20.62852787,236.43,236.36,20.62852787]
[1732571034083,20.62852787,236.43,236.35,20.62852787]
[1732571034887,14.4398,236.49,236.38,20.62852787]
[1732571034888,20.62852787,236.45,236.38,20.62852787]
[1732571035096,20.62852787,236.47,236.39,20.62852787]
[1732571035388,20.62852787,236.45,236.39,20.62852787]
[1732571035714,21.89702787,236.49,236.41,20.62852787]
[1732571036584,20.62852787,236.46,236.35,20.0]
[1732571036794,20.62852787,236.48,236.4,20.62852787]
[1732571037008,1.2685,236.49,236.42,20.62852787]
[1732571037900,1.2685,236.49,236.44,20.62852787]
[1732571039517,25.9767,236.5,236.46,20.62852787]
[1732571039804,25.9767,236.5,236.44,20.62852787]
[1732571040211,7.632,236.5,236.44,20.62852787]
[1732571040416,1.2683,236.53,236.46,20.62852787]
[1732571040611,1.2682,236.55,236.48,20.62852787]
[1732571041411,20.62852787,236.54,236.46,20.62852787]
[1732571041912,1.2683,236.53,236.46,20.62852787]
[1732571042212,1.2683,236.53,236.36,1.98676507]
[1732571042213,10.0,236.36,236.22,20.62852787]
[1732571042385,20.62852787,236.33,236.24,20.62852787]
[1732571042792,28.12072787,236.35,236.26,20.62852787]
[1732571042997,20.62852787,236.33,236.26,20.62852787]
[1732571043201,20.62852787,236.33,236.24,20.62852787]
[1732571043509,21.89792787,236.33,236.24,20.62852787]
[1732571043707,8.7615,236.35,236.28,20.62852787]
[1732571044000,8.7615,236.35,236.26,20.62852787]
[1732571044195,20.62852787,236.34,236.26,20.62852787]
[1732571044800,20.62852787,236.34,236.2,0.5003757]
[1732571044801,20.62852787,236.32,236.2,4.7338757]
[1732571045001,20.62852787,236.3,236.21,20.62852787]
[1732571045203,20.62852787,236.32,236.23,20.62852787]
[1732571045611,20.62852787,236.32,236.23,19.62852787]
[1732571045908,20.62852787,236.29,236.2,21.12890357]
[1732571046112,20.0682,236.32,236.2,21.12890357]
[1732571046113,40.69672787,236.32,236.22,20.62852787]
[1732571046314,40.69672787,236.32,236.2,0.5003757]
[1732571046315,20.62852787,236.28,236.2,0.5003757]
[1732571046483,20.62852787,236.28,236.21,20.62852787]
[1732571046683,1.2697,236.27,236.21,20.62852787]
[1732571047288,20.62852787,236.26,236.2,0.5003757]
[1732571047617,20.62852787,236.26,236.2,0.1187877]
[1732571048314,20.62852787,236.23,236.2,0.1187877]
[1732571048514,20.62852787,236.23,236.2,0.07194829]
[1732571048820,20.62852787,236.22,236.2,0.07194829]
[1732571049005,1.27,236.21,236.2,0.07194829]
[1732571049201,21.89852787,236.21,236.2,0.07194829]
[1732571049404,20.62852787,236.2,236.19,20.45809127]
[1732571049905,21.89852787,236.21,236.19,20.45809127]
[1732571050889,1.27,236.21,236.19,20.45809127]
[1732571051095,7.9525,236.22,236.19,41.08661914]
[1732571051313,20.62852787,236.25,236.19,20.45809127]
[1732571051496,20.62852787,236.24,236.19,20.45809127]
[1732571052417,1.2697,236.27,236.19,20.45809127]
[1732571052418,20.62852787,236.25,236.19,20.45809127]
[1732571052607,20.62852787,236.24,236.19,20.45809127]